lending/lending_fUSD_20260222
["ID","MTS","AMOUNT","RATE_DAILY","PERIOD"]
[406356821,1771789857785,-300.0,0.00040825,2]
[406356822,1771789857795,-518.57454504,0.00040825,2]
[406356823,1771789857804,-306.23261478,0.00040825,2]
[406356824,1771789857813,-300.0,0.00040825,2]
[406356825,1771789857823,-1082.06179791,0.00040825,2]
[406356826,1771789857833,-855.68345202,0.00040825,2]
[406356827,1771789857842,-306.05328416,0.00040825,2]
[406356828,1771789857851,-884.4819891,0.00040825,2]
[406356829,1771789857862,-1563.1197537,0.00040825,2]
[406356830,1771789857872,-307.27731077,0.00040825,2]
[406356831,1771789857881,-458.78505011,0.00040825,2]
[406356832,1771789857890,-371.39458192,0.00040825,2]
[406356833,1771789857899,-549.05872184,0.00040825,2]
[406356834,1771789857908,-518.57454504,0.00040825,2]
[406356835,1771789857917,-306.23261478,0.00040825,2]
[406356836,1771789857926,-300.0,0.00040825,2]
[406356837,1771789857935,-1082.06179791,0.00040825,2]
[406356838,1771789857944,-300.0,0.00040825,2]
[406356839,1771789857953,-855.68345202,0.00040825,2]
[406356840,1771789857962,-306.05328416,0.00040825,2]
[406356841,1771789857971,-884.4819891,0.00040825,2]
[406356842,1771789857980,-1560.97026512,0.00040825,2]
[406356843,1771789857989,-307.27731077,0.00040825,2]
[406356844,1771789857998,-458.78505011,0.00040825,2]
[406356845,1771789858009,-371.39458192,0.00040825,2]
[406356846,1771789858018,-518.57454504,0.00040825,2]
[406356847,1771789858028,-306.23261478,0.00040825,2]
[406356848,1771789858037,-300.0,0.00040825,2]
[406356849,1771789858046,-1082.06179791,0.00040825,2]
[406356850,1771789858056,-300.0,0.00040825,2]
[406356851,1771789858066,-855.68345202,0.00040825,2]
[406356852,1771789858075,-306.05328416,0.00040825,2]
[406356853,1771789858085,-884.4819891,0.00040825,2]
[406356854,1771789858094,-1562.04500941,0.00040825,2]
[406356855,1771789858103,-307.27731077,0.00040825,2]
[406356856,1771789858112,-458.78505011,0.00040825,2]
[406356857,1771789858122,-371.39458192,0.00040825,2]
[406356858,1771789858131,-518.57454504,0.00040825,2]
[406356859,1771789858141,-306.23261478,0.00040825,2]
[406356860,1771789858151,-300.0,0.00040825,2]
[406356861,1771789858161,-1082.06179791,0.00040825,2]
[406356862,1771789858172,-300.00000001,0.00040825,2]
[406356863,1771789858182,-855.68345202,0.00040825,2]
[406356864,1771789858192,-306.05328416,0.00040825,2]
[406356865,1771789858201,-884.4819891,0.00040825,2]
[406356866,1771789858211,-307.27731077,0.00040825,2]
[406356867,1771789858220,-458.78505011,0.00040825,2]
[406356868,1771789858231,-371.39458192,0.00040825,2]
[406356869,1771789858240,-514.93745648,0.00040825,2]
[406356870,1771789858250,-306.23261478,0.00040825,2]
[406356871,1771789858259,-300.0,0.00040825,2]
[406356872,1771789858269,-1082.06179791,0.00040825,2]
[406356873,1771789858278,-849.20106791,0.00040825,2]
[406356874,1771789858287,-306.05328416,0.00040825,2]
[406356875,1771789858297,-878.00569228,0.00040825,2]
[406356876,1771789858308,-305.02736782,0.00040825,2]
[406356877,1771789858317,-455.54158106,0.00040825,2]
[406356878,1771789858326,-368.93559093,0.00040825,2]
[406356879,1771789858335,-306.23261478,0.00040825,2]
[406356880,1771789858346,-300.0,0.00040825,2]
[406356881,1771789858355,-1140.94863491,0.00040825,2]
[406356882,1771789858366,-306.05328416,0.00040825,2]
[406356883,1771789858376,-303.92315898,0.00040825,2]
[406356884,1771789858387,-300.0,0.00040825,2]
[406356885,1771789858396,-306.05328416,0.00040825,2]
[406356886,1771789858406,-300.0,0.00040825,2]
[406356887,1771789858415,-306.05328416,0.00040825,2]
[406356888,1771789858425,-300.0,0.00040825,2]
[406356889,1771789858434,-306.05328416,0.00040825,2]
[406356890,1771789858443,-300.0,0.00040825,2]
[406356891,1771789858452,-306.05328416,0.00040825,2]
[406356892,1771789858461,-300.0,0.00040825,2]
[406356893,1771789858471,-306.05328416,0.00040825,2]
[406356894,1771789858481,-300.0,0.00040825,2]
[406356895,1771789858490,-306.05328416,0.00040825,2]
[406356896,1771789858499,-300.0,0.00040825,2]
[406356897,1771789858509,-1000.0,0.00040829,120]
[406356898,1771789858519,-1000.0,0.00040829,120]
[406356899,1771789858528,-1000.0,0.00040829,120]
[406356900,1771789858538,-1000.0,0.00040829,120]
[406356901,1771789858548,-1000.0,0.00040829,120]
[406356902,1771789858558,-224.69878396,0.00040832,7]
[406356903,1771789858567,-224.69878396,0.00040878,7]
[406356904,1771789858577,-154.0,0.000409,120]
[406356905,1771789858587,-15000.0,0.000409,120]
[406356906,1771789858596,-15000.0,0.000409,120]
[406356907,1771789858606,-224.69878396,0.00040924,7]
[406356908,1771789858618,-104051.0,0.0004095,60]
[406356909,1771789858627,-400.71997753,0.00040961,14]
[406356910,1771789858637,-224.69878396,0.00040969,7]
[406356911,1771789858647,-150.0,0.00040973,5]
[406356912,1771789858657,-600.0,0.00041,120]
[406356913,1771789858668,-600.0,0.00041,120]
[406356914,1771789858679,-600.0,0.00041,120]
[406356915,1771789858689,-600.0,0.00041,120]
[406356916,1771789858700,-600.0,0.00041,120]
[406356917,1771789858709,-718.57,0.00041,30]
[406356918,1771789858720,-10000.0,0.00041,120]
[406356919,1771789858730,-9999.98,0.00041,120]
[406356920,1771789858740,-9999.99,0.00041,120]
[406356921,1771789858750,-10000.0,0.00041,120]
[406356922,1771789858759,-12500.0,0.00041,120]
[406356923,1771789858769,-20868.05,0.00041,2]
[406356924,1771789858778,-224.69878396,0.00041015,7]
[406356925,1771789858792,-224.69878396,0.00041061,7]
[406356926,1771789858801,-30000.0,0.00041096,120]
[406356927,1771789858811,-50000.0,0.00041096,120]
[406356928,1771789858820,-151.0,0.00041096,120]
[406356929,1771789858831,-151.0,0.00041096,120]
[406356930,1771789858839,-151.0,0.00041096,120]
[406356931,1771789858849,-151.0,0.00041096,120]
[406356932,1771789858858,-167.513188,0.00041096,120]
[406356933,1771789858867,-151.0,0.00041096,120]
[406356934,1771789858877,-151.0,0.00041096,120]
[406356935,1771789858886,-151.0,0.00041096,120]
[406356936,1771789858895,-151.0,0.00041096,120]
[406356937,1771789858904,-151.0,0.00041096,120]
[406356938,1771789858913,-151.0,0.00041096,120]
[406356939,1771789858922,-151.0,0.00041096,120]
[406356940,1771789858931,-151.0,0.00041096,120]
[406356941,1771789858940,-151.0,0.00041096,120]
[406356942,1771789858950,-151.0,0.00041096,120]
[406356943,1771789858959,-151.0,0.00041096,120]
[406356944,1771789858968,-151.0,0.00041096,120]
[406356945,1771789858978,-217.582223,0.00041096,120]
[406356946,1771789858988,-261.193869,0.00041096,10]
[406356947,1771789858998,-261.193869,0.00041096,10]
[406356948,1771789859007,-261.193869,0.00041096,10]
[406356949,1771789859018,-261.193869,0.00041096,10]
[406356950,1771789859029,-261.193869,0.00041096,10]
[406356951,1771789859039,-261.193869,0.00041096,10]
[406356952,1771789859049,-261.193869,0.00041096,10]
[406356953,1771789859058,-261.193869,0.00041096,10]
[406356954,1771789859068,-261.193869,0.00041096,10]
[406356955,1771789859077,-261.193869,0.00041096,10]
[406356956,1771789859086,-261.193869,0.00041096,10]
[406356957,1771789859096,-261.193869,0.00041096,10]
[406356958,1771789859105,-261.193869,0.00041096,10]
[406356959,1771789859115,-261.193869,0.00041096,10]
[406356960,1771789859125,-261.193869,0.00041096,10]
[406356961,1771789859134,-261.193869,0.00041096,10]
[406356962,1771789859143,-261.193869,0.00041096,10]
[406356963,1771789859154,-261.193869,0.00041096,10]
[406356964,1771789859164,-261.193869,0.00041096,10]
[406356965,1771789859174,-261.193872,0.00041096,10]
[406356966,1771789859185,-151.0,0.00041096,7]
[406356967,1771789859195,-151.0,0.00041096,7]
[406356968,1771789859204,-151.0,0.00041096,7]
[406356969,1771789859214,-151.0,0.00041096,7]
[406356970,1771789859224,-151.0,0.00041096,7]
[406356971,1771789859233,-258.475464,0.00041096,7]
[406356972,1771789859243,-151.0,0.00041096,120]
[406356973,1771789859252,-151.0,0.00041096,120]
[406356974,1771789859262,-151.0,0.00041096,120]
[406356975,1771789859271,-151.0,0.00041096,120]
[406356976,1771789859281,-151.0,0.00041096,120]
[406356977,1771789859291,-151.0,0.00041096,120]
[406356978,1771789859300,-276.870804,0.00041096,120]
[406356979,1771789859310,-151.0,0.00041096,120]
[406356980,1771789859319,-246.557101,0.00041096,120]
[406356981,1771789859328,-151.0,0.00041096,120]
[406356982,1771789859338,-182.275893,0.00041096,120]
[406356983,1771789859347,-151.0,0.00041096,31]
[406356984,1771789859357,-151.0,0.00041096,31]
[406356985,1771789859366,-151.0,0.00041096,31]
[406356986,1771789859375,-151.0,0.00041096,31]
[406356987,1771789859385,-151.0,0.00041096,31]
[406356988,1771789859394,-151.0,0.00041096,31]
[406356989,1771789859403,-151.0,0.00041096,31]
[406356990,1771789859414,-191.974451,0.00041096,31]
[406356991,1771789859423,-155.74,0.000411,14]
[406356992,1771789859432,-224.69878396,0.00041107,30]
[406356993,1771789859442,-150.0,0.0004111,30]
[406356994,1771789859452,-224.69878396,0.00041152,30]
[406356995,1771789859461,-224.69878396,0.00041198,30]
[406356996,1771789859470,-15000.0,0.000412,120]
[406356997,1771789859480,-15000.0,0.000412,120]
[406356998,1771789859489,-224.69878396,0.00041244,30]
[406356999,1771789859498,-12500.0,0.0004125,120]
[406357000,1771789859508,-224.69878396,0.0004129,30]
[406357001,1771789859517,-224.69878396,0.00041336,30]
[406357002,1771789859526,-224.69878396,0.00041381,30]
[406357003,1771789859535,-171.3,0.00041401,60]
[406357004,1771789859545,-224.69878396,0.00041427,30]
[406357005,1771789859555,-150.0,0.00041434,30]
[406357006,1771789859566,-224.69878396,0.00041473,30]
[406357007,1771789859577,-1325.98594102,0.00041483,4]
[406357008,1771789859588,-6040.70588714,0.000415,120]
[406357009,1771789859599,-15000.0,0.000415,120]
[406357010,1771789859610,-15000.0,0.000415,120]
[406357011,1771789859620,-12500.0,0.000415,120]
[406357012,1771789859631,-224.69878396,0.00041519,30]
[406357013,1771789859643,-150.70892352,0.00041521,10]
[406357014,1771789859652,-224.69878396,0.00041564,30]
[406357015,1771789859661,-500.0,0.00041604,120]
[406357016,1771789859671,-200.0,0.00041604,120]
[406357017,1771789859680,-224.69878396,0.0004161,30]
[406357018,1771789859689,-224.69878396,0.00041656,30]
[406357019,1771789859698,-150.0,0.00041693,30]
[406357020,1771789859707,-224.69878396,0.00041702,30]
[406357021,1771789859717,-224.69878396,0.00041747,30]
[406357022,1771789859727,-12500.0,0.0004175,120]
[406357023,1771789859736,-150.0,0.00041757,30]
[406357024,1771789859746,-224.69878396,0.00041793,30]
[406357025,1771789859755,-15000.0,0.000418,120]
[406357026,1771789859888,-15000.0,0.000418,120]
[406357027,1771789859900,-152.0,0.00041814,5]
[406357028,1771789859910,-224.69878396,0.00041839,30]
[406357029,1771789859921,-200.0,0.00041871,2]
[406357030,1771789859932,-200.0,0.00041871,2]
[406357031,1771789859941,-200.0,0.00041871,2]
[406357032,1771789859951,-200.0,0.00041871,2]
[406357033,1771789859960,-200.0,0.00041871,2]
[406357034,1771789859968,-200.0,0.00041871,2]
[406357035,1771789859978,-200.0,0.00041871,2]
[406357036,1771789859987,-200.0,0.00041871,2]
[406357037,1771789859996,-200.0,0.00041871,2]
[406357038,1771789860005,-200.0,0.00041871,2]
[406357039,1771789860015,-200.0,0.00041871,2]
[406357040,1771789860024,-200.0,0.00041871,2]
[406357041,1771789860033,-200.0,0.00041871,2]
[406357042,1771789860043,-200.0,0.00041871,2]
[406357043,1771789860052,-200.0,0.00041871,2]
[406357044,1771789860062,-200.0,0.00041871,2]
[406357045,1771789860072,-321.0,0.00041871,2]
[406357046,1771789860081,-224.69878396,0.00041885,30]
[406357047,1771789860091,-434.0,0.000419,2]
[406357048,1771789860101,-154.0,0.000419,120]
[406357049,1771789860111,-378.57434794,0.000419,120]
[406357050,1771789860120,-150.0,0.00041919,30]
[406357051,1771789860129,-224.69878396,0.00041931,30]
[406357052,1771789860139,-224.69878396,0.00041976,30]
[406357053,1771789860148,-69100.0,0.00042,120]
[406357054,1771789860158,-550.0,0.00042,120]
[406357055,1771789860168,-8305.56910867,0.00042,120]
[406357056,1771789860178,-800.90568197,0.00042,2]
[406357057,1771789860187,-10000.0,0.00042,120]
[406357058,1771789860197,-10000.0,0.00042,120]
[406357059,1771789860206,-12500.0,0.00042,120]
[406357060,1771789860216,-224.69878396,0.00042022,30]
[406357061,1771789860226,-224.69878396,0.00042068,30]
[406357062,1771789860236,-150.0,0.00042081,30]
[406357063,1771789860245,-582.0,0.000421,3]
[406357064,1771789860255,-15000.0,0.000421,120]
[406357065,1771789860264,-15000.0,0.000421,120]
[406357066,1771789860274,-224.69878396,0.00042114,30]
[406357067,1771789860283,-224.69878396,0.00042159,30]
[406357068,1771789860293,-150.0,0.00042173,120]
[406357069,1771789860303,-224.69878396,0.00042205,30]
[406357070,1771789860314,-403.78501393,0.00042214,14]
[406357071,1771789860323,-12500.0,0.0004225,120]
[406357072,1771789860332,-224.69878396,0.00042251,30]
[406357073,1771789860342,-500.0,0.00042273,10]
[406357074,1771789860351,-150.0,0.00042297,30]
[406357075,1771789860361,-150.0,0.00042297,30]
[406357076,1771789860371,-224.69878396,0.00042297,30]
[406357077,1771789860381,-104051.0,0.000423,60]
[406357078,1771789860391,-206.0,0.0004234,30]
[406357079,1771789860400,-224.69878396,0.00042343,30]
[406357080,1771789860411,-4750.384374,0.00042355,120]
[406357081,1771789860421,-224.69878396,0.00042388,30]
[406357082,1771789860431,-15000.0,0.000424,120]
[406357083,1771789860441,-14999.99,0.000424,120]
[406357084,1771789860453,-150.0,0.00042405,30]
[406357085,1771789860463,-224.69878396,0.00042434,30]
[406357086,1771789860472,-224.69878396,0.0004248,30]
[406357087,1771789860482,-1891.955,0.00042489,64]
[406357088,1771789860491,-325.9989,0.000425,90]
[406357089,1771789860500,-2107.0499,0.000425,120]
[406357090,1771789860509,-1476.569,0.000425,90]
[406357091,1771789860519,-1476.57,0.000425,120]
[406357092,1771789860528,-859.083,0.000425,120]
[406357093,1771789860538,-12500.0,0.000425,120]
[406357094,1771789860547,-224.69878396,0.00042526,30]
[406357095,1771789860556,-224.69878396,0.00042571,30]
[406357096,1771789860567,-152.59,0.00042578,120]
[406357097,1771789860576,-150.0,0.00042599,30]
[406357098,1771789860585,-224.69878396,0.00042617,30]
[406357099,1771789860595,-224.69878396,0.00042663,30]
[406357100,1771789860604,-24982.72479398,0.000427,7]
[406357101,1771789860613,-15000.0,0.000427,120]
[406357102,1771789860623,-224.69878396,0.00042709,30]
[406357103,1771789860632,-150.0,0.00042728,30]
[406357104,1771789860647,-12500.0,0.0004275,120]
[406357105,1771789860657,-224.69878396,0.00042755,30]
[406357106,1771789860666,-151.35,0.00042794,120]
[406357107,1771789860677,-154.0,0.000428,120]
[406357108,1771789860686,-547.23602326,0.000428,30]
[406357109,1771789860696,-224.69878396,0.000428,30]
[406357110,1771789860705,-204.22,0.00042818,30]
[406357111,1771789860714,-200.0,0.00042838,120]
[406357112,1771789860726,-224.69878396,0.00042846,30]
[406357113,1771789860747,-224.69878396,0.00042892,30]
[406357114,1771789860756,-224.69878396,0.00042938,30]
[406357115,1771789860766,-224.69878396,0.00042983,30]
[406357116,1771789860775,-10026.8822956,0.00043,30]
[406357117,1771789860788,-1004.0,0.00043,120]
[406357118,1771789860798,-1544.55396893,0.00043,120]
[406357119,1771789860807,-1204.27,0.00043,30]
[406357120,1771789860816,-702.38,0.00043,30]
[406357121,1771789860825,-165.0,0.00043,2]
[406357122,1771789860834,-67280.2303989,0.00043,4]
[406357123,1771789860843,-10000.0,0.00043,120]
[406357124,1771789860853,-14999.98,0.00043,120]
[406357125,1771789860864,-10000.0,0.00043,120]
[406357126,1771789860874,-12500.0,0.00043,120]
[406357127,1771789860883,-224.69878396,0.00043029,30]
[406357128,1771789860892,-50000.0,0.00043035,2]
[406357129,1771789860902,-500.0,0.00043038,120]
[406357130,1771789860911,-4583.6033389,0.00043052,13]
[406357131,1771789860920,-1180.6721,0.00043052,4]
[406357132,1771789860929,-4006.1033,0.00043052,4]
[406357133,1771789860938,-150.0,0.00043052,30]
[406357134,1771789860948,-150.0,0.00043052,30]
[406357135,1771789860957,-150.0,0.00043052,30]
[406357136,1771789860966,-150.0,0.00043052,30]
[406357137,1771789860976,-150.0,0.00043052,30]
[406357138,1771789860986,-150.0,0.00043052,30]
[406357139,1771789860995,-224.69878396,0.00043075,30]
[406357140,1771789861004,-150.0,0.00043093,120]
[406357141,1771789861013,-150.0,0.00043093,120]
[406357142,1771789861023,-224.69878396,0.00043121,30]
[406357143,1771789861032,-224.69878396,0.00043167,30]
[406357144,1771789861041,-23421.86393432,0.0004321,120]
[406357145,1771789861051,-224.69878396,0.00043212,30]
[406357146,1771789861060,-224.69878396,0.00043258,30]
[406357147,1771789861069,-224.69878396,0.00043304,30]
[406357148,1771789861078,-118488.41350652,0.0004333,2]
[406357149,1771789861087,-224.69878396,0.0004335,30]
[406357150,1771789861097,-150.0,0.00043376,30]
[406357151,1771789861106,-224.69878396,0.00043395,30]
[406357152,1771789861116,-224.69878396,0.00043441,30]
[406357153,1771789861126,-180.0,0.00043452,120]
[406357154,1771789861136,-180.0,0.00043452,120]
[406357155,1771789861145,-150.0,0.00043464,120]
[406357156,1771789861154,-438.11342161,0.00043467,14]
[406357157,1771789861164,-224.69878396,0.00043487,30]
[406357158,1771789861173,-150.0,0.00043505,30]
[406357159,1771789861182,-1000.0,0.00043518,120]
[406357160,1771789861192,-150.0,0.00043529,120]
[406357161,1771789861201,-224.69878396,0.00043533,30]
[406357162,1771789861211,-224.69878396,0.00043579,30]
[406357163,1771789861220,-224.69878396,0.00043624,30]
[406357164,1771789861230,-151.02,0.00043637,30]
[406357165,1771789861239,-560.62,0.00043637,30]
[406357166,1771789861249,-1000.0,0.00043642,10]
[406357167,1771789861259,-104051.0,0.0004365,60]
[406357168,1771789861268,-2840.0,0.00043669,16]
[406357169,1771789861278,-224.69878396,0.0004367,30]
[406357170,1771789861288,-500.0,0.00043674,60]
[406357171,1771789861298,-500.0,0.00043674,60]
[406357172,1771789861308,-500.0,0.00043674,60]
[406357173,1771789861318,-150.0,0.0004369,120]
[406357174,1771789861328,-150.0,0.00043699,30]
[406357175,1771789861338,-224.69878396,0.00043716,30]
[406357176,1771789861348,-224.69878396,0.00043762,30]
[406357177,1771789861357,-150.0,0.00043792,120]
[406357178,1771789861366,-1000.0,0.000438,30]
[406357179,1771789861376,-154.0,0.000438,120]
[406357180,1771789861386,-207.41,0.000438,120]
[406357181,1771789861395,-2000.0,0.000438,2]
[406357182,1771789861405,-150.0,0.00043807,30]
[406357183,1771789861415,-150.0,0.00043807,30]
[406357184,1771789861425,-224.69878396,0.00043807,30]
[406357185,1771789861434,-1696.15384615,0.00043808,120]
[406357186,1771789861444,-281.94011494,0.00043808,120]
[406357187,1771789861453,-782.84023668,0.00043808,120]
[406357188,1771789861462,-335.50295858,0.00043808,120]
[406357189,1771789861471,-150.0,0.00043848,120]
[406357190,1771789861481,-224.69878396,0.00043853,30]
[406357191,1771789861491,-150.0,0.00043854,120]
[406357192,1771789861501,-224.69878396,0.00043899,30]
[406357193,1771789861511,-200.0,0.000439,16]
[406357194,1771789861520,-150.0,0.00043908,120]
[406357195,1771789861530,-224.69878396,0.00043945,30]
[406357196,1771789861539,-2793.0,0.00043965,16]
[406357197,1771789861549,-224.69878396,0.00043991,30]
[406357198,1771789861559,-30360.8599326,0.00044,2]
[406357199,1771789861568,-166.0,0.00044,2]
[406357200,1771789861581,-500.0,0.00044,120]
[406357201,1771789861591,-20175.99355728,0.00044,10]
[406357202,1771789861601,-199.22501794,0.00044,2]
[406357203,1771789861613,-1000.0,0.00044,120]
[406357204,1771789861623,-1500.0,0.00044,120]
[406357205,1771789861635,-561.209936,0.00044,57]
[406357206,1771789861645,-165.0,0.00044,30]
[406357207,1771789861654,-10000.0,0.00044,120]
[406357208,1771789861663,-10000.0,0.00044,120]
[406357209,1771789861673,-1000.0,0.00044001,120]
[406357210,1771789861682,-1500.0,0.00044001,120]
[406357211,1771789861693,-150.0,0.00044023,30]
[406357212,1771789861703,-2840.0,0.00044026,16]
[406357213,1771789861715,-2840.0,0.00044027,16]
[406357214,1771789861724,-224.69878396,0.00044036,30]
[406357215,1771789861735,-200.0,0.00044072,120]
[406357216,1771789861744,-224.69878396,0.00044082,30]
[406357217,1771789861755,-224.69878396,0.00044128,30]
[406357218,1771789861765,-224.69878396,0.00044174,30]
[406357219,1771789861775,-150.0,0.00044185,30]
[406357220,1771789861789,-150.0,0.00044198,120]
[406357221,1771789861798,-224.69878396,0.00044219,30]
[406357222,1771789861808,-224.69878396,0.00044265,30]
[406357223,1771789861818,-252.09306051,0.00044274,120]
[406357224,1771789861831,-150.0,0.00044281,120]
[406357225,1771789861841,-168.85326758,0.00044283,2]
[406357226,1771789861851,-209.79049163,0.00044283,2]
[406357227,1771789861861,-500.0,0.0004431,30]
[406357228,1771789861872,-224.69878396,0.00044311,30]
[406357229,1771789861882,-855.0,0.00044337,16]
[406357230,1771789861892,-150.0,0.00044347,30]
[406357231,1771789861901,-224.69878396,0.00044357,30]
[406357232,1771789861911,-150.0,0.00044365,120]
[406357233,1771789861920,-12092.25002608,0.00044383,2]
[406357234,1771789861930,-8266.58448436,0.00044383,4]
[406357235,1771789861939,-23428.93251935,0.00044383,2]
[406357236,1771789861948,-56280.93477381,0.00044383,4]
[406357237,1771789861958,-500.0,0.00044383,120]
[406357238,1771789861967,-500.0,0.00044383,120]
[406357239,1771789861976,-500.0,0.00044383,120]
[406357240,1771789861985,-500.0,0.00044383,120]
[406357241,1771789861994,-500.0,0.00044383,120]
[406357242,1771789862003,-500.0,0.00044383,120]
[406357243,1771789862012,-157.37570604,0.00044383,120]
[406357244,1771789862021,-500.0,0.00044383,120]
[406357245,1771789862031,-500.0,0.00044383,7]
[406357246,1771789862040,-500.0,0.00044383,7]
[406357247,1771789862049,-500.0,0.00044383,7]
[406357248,1771789862058,-500.0,0.00044383,120]
[406357249,1771789862067,-500.0,0.00044383,7]
[406357250,1771789862076,-468.9740126,0.00044383,7]
[406357251,1771789862086,-500.0,0.00044383,5]
[406357252,1771789862095,-500.0,0.00044383,5]
[406357253,1771789862104,-500.0,0.00044383,5]
[406357254,1771789862113,-500.0,0.00044383,5]
[406357255,1771789862122,-500.0,0.00044383,2]
[406357256,1771789862132,-500.0,0.00044383,2]
[406357257,1771789862141,-500.0,0.00044383,2]
[406357258,1771789862150,-500.0,0.00044383,2]
[406357259,1771789862159,-500.0,0.00044383,2]
[406357260,1771789862168,-500.0,0.00044383,2]
[406357261,1771789862177,-500.0,0.00044383,2]
[406357262,1771789862186,-500.0,0.00044383,2]
[406357263,1771789862195,-500.0,0.00044383,2]
[406357264,1771789862204,-405.22470817,0.00044383,120]
[406357265,1771789862213,-439.72064626,0.00044383,120]
[406357266,1771789862222,-500.0,0.00044383,120]
[406357267,1771789862231,-500.0,0.00044383,120]
[406357268,1771789862241,-500.0,0.00044383,120]
[406357269,1771789862250,-500.0,0.00044383,120]
[406357270,1771789862259,-500.0,0.00044383,120]
[406357271,1771789862272,-500.0,0.00044383,120]
[406357272,1771789862281,-500.0,0.00044383,120]
[406357273,1771789862290,-500.0,0.00044383,120]
[406357274,1771789862299,-500.0,0.00044383,120]
[406357275,1771789862309,-500.0,0.00044383,120]
[406357276,1771789862319,-500.0,0.00044383,120]
[406357277,1771789862327,-500.0,0.00044383,120]
[406357278,1771789862337,-500.0,0.00044383,120]
[406357279,1771789862346,-500.0,0.00044383,120]
[406357280,1771789862355,-500.0,0.00044383,120]
[406357281,1771789862364,-500.0,0.00044383,120]
[406357282,1771789862374,-500.0,0.00044383,120]
[406357283,1771789862384,-500.0,0.00044383,120]
[406357284,1771789862393,-430.01122581,0.00044383,90]
[406357285,1771789862403,-27204.39,0.00044383,120]
[406357286,1771789862412,-27204.39,0.00044383,120]
[406357287,1771789862421,-27204.39,0.00044383,120]
[406357288,1771789862431,-27204.39,0.00044383,120]
[406357289,1771789862440,-27204.39,0.00044383,120]
[406357290,1771789862449,-27204.39,0.00044383,120]
[406357291,1771789862458,-27204.39,0.00044383,120]
[406357292,1771789862467,-27204.39,0.00044383,120]
[406357293,1771789862477,-27204.39,0.00044383,120]
[406357294,1771789862487,-27204.39,0.00044383,120]
[406357295,1771789862496,-27204.39,0.00044383,120]
[406357296,1771789862506,-27204.39,0.00044383,120]
[406357297,1771789862515,-27204.39,0.00044383,120]
[406357298,1771789862525,-27204.39,0.00044383,120]
[406357299,1771789862535,-27204.39,0.00044383,120]
[406357300,1771789862545,-27204.39,0.00044383,120]
[406357301,1771789862554,-27204.39,0.00044383,120]
[406357302,1771789862565,-27204.39,0.00044383,120]
[406357303,1771789862575,-27204.39,0.00044383,120]
[406357304,1771789862585,-27204.39,0.00044383,120]
[406357305,1771789862595,-27204.39,0.00044383,120]
[406357306,1771789862604,-27204.39,0.00044383,120]
[406357307,1771789862613,-27204.39,0.00044383,120]
[406357308,1771789862621,-27204.50445681,0.00044383,120]
[406357309,1771789862629,-239.04610872,0.00044383,120]
[406357310,1771789862638,-512.16833799,0.00044383,120]
[406357311,1771789862646,-440.0,0.00044383,120]
[406357312,1771789862654,-500.0,0.00044383,120]
[406357313,1771789862662,-500.0,0.00044383,120]
[406357314,1771789862668,-360.88870981,0.00044383,120]
[406357315,1771789862675,-500.0,0.00044383,2]
[406357316,1771789862682,-500.0,0.00044383,2]
[406357317,1771789862690,-500.0,0.00044383,2]
[406357318,1771789862699,-500.0,0.00044383,2]
[406357319,1771789862710,-500.0,0.00044383,2]
[406357320,1771789862719,-500.0,0.00044383,2]